bitfinex/quotes_SOLUSD_20250129
["timestamp","ask_amount","ask_price","bid_price","bid_amount"]
[1738165393387,24.027864,227.78,227.75,0.03]
[1738165393591,0.25098,227.78,227.75,0.03]
[1738165393764,0.12549,227.77,227.75,0.03]
[1738165395486,0.25098,227.78,227.75,0.03]
[1738165395703,12.71837386,227.81,227.75,0.03]
[1738165396196,0.25098,227.8,227.75,0.03]
[1738165396696,0.25098,227.78,227.75,0.03]
[1738165396876,0.25098,227.76,227.75,0.03]
[1738165397195,24.153354,227.76,227.75,0.03]
[1738165398073,20.0,227.73,227.63,0.03]
[1738165398297,0.25098,227.68,227.63,0.03]
[1738165399294,25.784664,227.68,227.63,0.03]
[1738165399594,0.25098,227.68,227.63,0.03]
[1738165400167,12.96935386,227.64,227.63,0.03]
[1738165400369,0.25098,227.64,227.63,0.03]
[1738165401285,12.71837386,227.67,227.63,0.03]
[1738165401588,0.25098,227.66,227.63,0.03]
[1738165403504,12.96935386,227.66,227.63,0.03]
[1738165404376,12.71837386,227.7,227.63,0.03]
[1738165404570,12.71837386,227.73,227.63,0.03]
[1738165404776,12.71837386,227.73,227.63,136.43]
[1738165404973,0.12549,227.72,227.64,6.73744477]
[1738165405301,12.71837386,227.75,227.64,226.23744477]
[1738165405468,12.78137386,227.77,227.64,225.7983]
[1738165405674,12.78137386,227.77,227.65,3.14]
[1738165405675,0.063,227.77,227.65,3.14]
[1738165405980,0.063,227.77,227.68,20.0]
[1738165406299,0.063,227.77,227.69,0.43904524]
[1738165406485,0.063,227.77,227.7,4.3917]
[1738165406685,0.063,227.77,227.71,0.43905394]
[1738165406889,0.063,227.77,227.71,138.47975394]
[1738165407093,0.063,227.77,227.71,138.0407]
[1738165407404,0.063,227.77,227.71,221.1407]
[1738165407707,0.063,227.77,227.72,312.0]
[1738165407883,0.063,227.77,227.73,0.43894973]
[1738165408077,0.063,227.77,227.73,136.83894973]
[1738165408291,0.063,227.77,227.74,0.43893248]
[1738165408496,0.063,227.77,227.73,136.4]
[1738165411597,0.063,227.77,227.73,140.7911]
[1738165412012,0.063,227.77,227.73,136.4]
[1738165412722,0.063,227.77,227.73,140.7911]
[1738165412915,0.063,227.77,227.74,0.43900542]
[1738165413807,0.063,227.77,227.73,136.43]
[1738165414518,12.71837386,227.76,227.73,136.43]
[1738165414823,0.063,227.77,227.73,136.43]
[1738165415114,0.063,227.77,227.74,0.43907072]
[1738165415627,0.063,227.77,227.74,219.93907072]
[1738165415818,0.063,227.77,227.74,219.5]
[1738165415995,0.063,227.77,227.75,0.43895381]
[1738165416410,0.18849,227.77,227.74,83.1]
[1738165416723,0.37647,227.75,227.73,0.03]
[1738165416894,36.87172786,227.74,227.73,0.03]
[1738165418621,38.62802786,227.74,227.73,0.03]
[1738165421504,13.09484386,227.74,227.73,0.03]
[1738165422021,14.85114386,227.74,227.73,0.03]
[1738165427302,38.62802786,227.74,227.73,0.03]
[1738165435620,14.85114386,227.74,227.73,0.03]
[1738165435931,12.96935386,227.74,227.73,0.03]
[1738165437411,14.47457386,227.76,227.73,0.03]
[1738165437922,0.25098,227.75,227.73,0.03]
[1738165438127,0.31398,227.75,227.73,0.03]
[1738165439028,2.07028,227.75,227.73,0.03]
[1738165439708,12.96935386,227.74,227.73,0.03]
[1738165440532,36.87172786,227.74,227.73,0.03]
[1738165441232,38.62802786,227.74,227.73,0.03]
[1738165442537,20.25098,227.7,227.63,0.03]
[1738165442827,24.153354,227.64,227.63,0.03]
[1738165443734,2.13357,227.64,227.63,0.03]
[1738165444205,0.12549,227.58,227.54,5.775]
[1738165444544,0.12549,227.56,227.54,5.775]
[1738165444708,0.25098,227.56,227.5,139.57]
[1738165444904,0.25098,227.56,227.5,136.43]
[1738165445605,6.4028,227.67,227.51,0.43945849]
[1738165445606,12.71837386,227.61,227.51,0.43945849]
[1738165446236,0.25098,227.58,227.51,0.43945849]
[1738165446418,0.25098,227.58,227.5,140.8255]
[1738165447040,0.25098,227.58,227.51,0.43943294]
[1738165447446,0.25098,227.58,227.52,4.3952]
[1738165447655,12.71837386,227.61,227.52,4.3952]
[1738165447959,12.71837386,227.61,227.53,0.43942817]
[1738165448171,12.71837386,227.63,227.53,0.43942817]
[1738165448340,0.12549,227.59,227.53,136.4]
[1738165449249,12.71837386,227.61,227.53,136.4]
[1738165449568,0.12549,227.6,227.54,4.3948]
[1738165449767,0.12549,227.58,227.54,4.3948]
[1738165450074,0.12549,227.58,227.54,140.7948]
[1738165450271,0.12549,227.58,227.54,136.4]
[1738165450635,12.71837386,227.61,227.54,136.4]
[1738165451058,12.71837386,227.65,227.55,0.43935246]
[1738165451359,12.71837386,227.67,227.55,219.93935246]
[1738165451561,12.71837386,227.69,227.59,4.3938]
[1738165451770,12.71837386,227.69,227.6,0.43923659]
[1738165451942,0.12549,227.68,227.6,219.93923659]
[1738165452142,0.12549,227.68,227.61,0.43922712]
[1738165452457,0.25098,227.7,227.61,136.83922712]
[1738165452649,0.25098,227.7,227.62,0.43921878]
[1738165452850,0.12549,227.7,227.62,136.83921878]
[1738165453057,12.71837386,227.73,227.63,0.43917725]
[1738165453237,0.063,227.74,227.63,219.93917725]
[1738165453445,0.063,227.74,227.64,0.43911969]
[1738165453774,0.063,227.74,227.65,16.9739]
[1738165453951,0.063,227.74,227.66,0.4390811]
[1738165454345,0.18849,227.74,227.66,0.4390811]
[1738165454667,12.90686386,227.74,227.66,0.4390811]
[1738165455138,0.12549,227.73,227.66,0.4390811]
[1738165455336,0.12549,227.69,227.65,1.5995]
[1738165455668,0.25098,227.69,227.63,219.5]
[1738165456772,12.71837386,227.72,227.64,0.43921605]
[1738165456955,12.96935386,227.71,227.63,223.8929]
[1738165458574,0.12549,227.73,227.64,0.43920263]
[1738165458764,0.063,227.74,227.64,0.43920263]
[1738165458965,0.063,227.74,227.64,219.93920263]
[1738165459152,0.31398,227.74,227.64,219.5]
[1738165459465,14.78865386,227.74,227.65,0.43912243]
[1738165459762,0.31398,227.74,227.65,0.43912243]
[1738165459953,0.063,227.74,227.67,23.776884]
[1738165460144,0.063,227.74,227.69,1.5298]
[1738165460467,0.063,227.74,227.7,0.43902941]
[1738165461140,0.063,227.74,227.71,4.3915]
[1738165461341,0.063,227.74,227.72,0.43902416]
[1738165462261,0.063,227.74,227.7,0.43901537]
[1738165463163,0.063,227.74,227.7,4.83061537]
[1738165463567,0.063,227.74,227.7,141.23061537]
[1738165463768,0.063,227.74,227.7,136.4]
[1738165463977,0.063,227.75,227.7,136.4]
[1738165463978,0.18849,227.75,227.74,0.5639488]
[1738165464169,14.78865386,227.75,227.74,0.5639488]
[1738165464671,14.91414386,227.75,227.74,0.5639488]
[1738165467173,2.07028,227.75,227.74,0.5639488]
[1738165468652,0.063,227.75,227.74,0.5639488]
[1738165469778,0.063,227.75,227.74,226.51722007]
[1738165469948,0.063,227.75,227.74,226.0782488]
[1738165472747,0.063,227.75,227.74,249.8551328]
[1738165472946,0.063,227.75,227.74,226.0782488]
[1738165473363,0.063,227.75,227.74,221.6873488]
[1738165473868,0.063,227.75,227.74,0.5639488]
[1738165474080,1.94479,227.75,227.74,0.5639488]
[1738165474246,2.07028,227.75,227.74,0.5639488]
[1738165476571,2.19577,227.75,227.74,0.5639488]
[1738165477072,25.972654,227.75,227.74,0.5639488]
[1738165477376,2.19577,227.75,227.74,0.5639488]
[1738165480063,2.19577,227.75,227.74,0.5939488]
[1738165482373,2.07028,227.75,227.74,0.5939488]
[1738165483070,1.94479,227.75,227.74,0.5939488]
[1738165483375,0.063,227.75,227.74,0.5939488]
[1738165483568,0.063,227.75,227.74,136.9939488]
[1738165487481,0.063,227.75,227.74,0.5939488]
[1738165488781,0.063,227.75,227.74,4.9848488]
[1738165489381,0.063,227.75,227.74,5.42377325]
[1738165489966,0.063,227.75,227.74,224.92377325]
[1738165490265,0.063,227.75,227.74,224.4848488]
[1738165494688,0.063,227.75,227.74,220.0939488]
[1738165495089,0.063,227.75,227.74,0.5939488]
[1738165495793,0.063,227.75,227.74,141.3848488]
[1738165497296,0.063,227.75,227.74,166.7853328]
[1738165497465,0.063,227.75,227.74,249.8853328]
[1738165497665,0.063,227.77,227.75,54.776884]
[1738165497867,0.0001,227.77,227.76,32.14858697]
[1738165498101,0.0001,227.77,227.76,6.99523297]
[1738165498607,0.0001,227.77,227.76,34.52573297]
[1738165498784,0.0001,227.77,227.76,30.13523297]
[1738165498970,0.0001,227.77,227.76,34.52573297]
[1738165499994,0.0001,227.77,227.76,343.38573297]
[1738165500196,0.0001,227.77,227.76,342.9469]
[1738165500989,0.0001,227.77,227.76,347.723784]
[1738165501383,0.0001,227.77,227.76,346.723784]
[1738165501915,0.063,227.94,227.86,20.0]
[1738165502079,0.063,227.94,227.87,3.57868956]
[1738165502284,0.063,227.94,227.89,30.0]
[1738165502514,0.063,227.94,227.92,20.0]
[1738165502811,0.063,227.94,227.93,4.82587235]
[1738165502981,0.063,227.94,227.93,249.10275635]
[1738165503181,0.063,227.94,227.93,248.664184]
[1738165503632,0.063,227.97,227.96,20.0]
[1738165503811,0.063,227.97,227.96,20.43851788]
[1738165504682,0.063,227.97,227.96,0.43851788]
[1738165504885,0.063,227.97,227.96,24.3867]
[1738165505208,0.063,227.97,227.96,190.7867]
[1738165505397,0.063,228.0,227.99,30.0]
[1738165505604,0.063,228.0,227.99,249.93840614]
[1738165505796,0.063,228.0,227.99,249.5]
[1738165507214,0.063,228.0,227.99,223.8861]
[1738165507589,0.063,228.0,227.99,219.5]
[1738165509298,0.063,228.0,227.99,244.276884]
[1738165509819,0.063,228.0,227.99,219.5]
[1738165510990,0.063,228.0,227.99,249.5]
[1738165511313,0.063,228.0,227.99,219.5]
[1738165515104,0.063,228.0,227.99,223.8861]
[1738165515511,0.063,228.0,227.99,247.662984]
[1738165516021,0.0001,228.0,227.99,248.039454]
[1738165516323,0.0001,228.0,227.99,254.517254]
[1738165516824,0.0001,228.0,227.99,566.517254]
[1738165518025,0.0001,228.0,227.99,568.27219013]
[1738165519031,0.0001,228.0,227.99,566.140784]
[1738165519226,0.0001,228.0,227.99,227.0261]
[1738165519416,0.0001,228.0,227.99,223.8861]
[1738165519610,0.0001,228.0,227.99,247.662984]
[1738165519798,0.0001,228.0,227.99,250.039454]
[1738165519998,0.0001,228.0,227.99,248.039454]
[1738165520233,0.0001,228.0,227.99,223.8861]
[1738165520821,0.0001,228.0,227.99,219.5]
[1738165523535,0.0001,228.0,227.99,223.8861]
[1738165523733,0.0001,228.0,227.99,219.5]
[1738165525203,1.0,227.67,227.66,8.35591809]
[1738165525427,1.0,227.66,227.41,81.10484819]
[1738165525634,41.62918944,227.62,227.43,2.75475668]
[1738165525838,41.62918944,227.62,227.45,30.0]
[1738165525839,20.31459472,227.62,227.45,30.0]
[1738165526210,20.31459472,227.62,227.45,31.0]
[1738165526421,20.31459472,227.62,227.45,30.0]
[1738165526641,64.78254344,227.62,227.45,30.0]
[1738165527014,20.69106472,227.62,227.52,136.43]
[1738165527215,20.69106472,227.62,227.61,77.66477971]
[1738165527630,51.58737664,227.62,227.61,77.66477971]
[1738165528043,0.37647,227.6,227.59,57.08183877]
[1738165528243,41.00565944,227.6,227.59,54.57649568]
[1738165528413,21.57311249,227.59,227.45,130.75954905]
[1738165528610,20.31459472,227.51,227.45,130.75954905]
[1738165529019,20.31459472,227.51,227.45,160.75954905]
[1738165529418,20.31459472,227.49,227.45,160.75954905]
[1738165529946,20.31459472,227.55,227.45,160.75954905]
[1738165530129,8.94370306,227.5,227.45,160.75954905]
[1738165530452,8.94370306,227.5,227.46,1.0]
[1738165530651,11.92493743,227.57,227.47,23.776884]
[1738165530829,33.99723215,227.57,227.47,130.75954905]
[1738165531156,20.31459472,227.55,227.47,130.75954905]
[1738165531940,20.31459472,227.53,227.47,130.75954905]
[1738165532121,20.31459472,227.51,227.47,130.75954905]
[1738165532333,20.31459472,227.51,227.45,130.78954905]
[1738165532768,20.31459472,227.53,227.45,130.78954905]
[1738165533223,0.879,227.52,227.45,130.78954905]
[1738165534453,20.31459472,227.51,227.45,130.78954905]
[1738165535147,0.8789,227.54,227.45,0.03]
[1738165535148,20.31459472,227.46,227.45,0.03]
[1738165535328,20.31459472,227.48,227.45,0.03]
[1738165535722,20.31459472,227.46,227.45,0.03]
[1738165536033,20.44008472,227.46,227.45,0.03]
[1738165536620,21.31928472,227.46,227.45,0.03]
[1738165536823,45.22165872,227.46,227.42,52.1]
[1738165537034,20.44008472,227.43,227.42,52.1]
[1738165538050,0.12549,227.42,227.33,132.31054905]
[1738165538348,20.31459472,227.41,227.33,132.31054905]
[1738165538555,0.12549,227.42,227.33,132.31054905]
[1738165538556,20.31459472,227.4,227.33,132.31054905]
[1738165538848,21.19409472,227.39,227.33,132.31054905]
[1738165539027,0.8795,227.39,227.33,132.31054905]
[1738165539341,21.19409472,227.39,227.33,1.551]
[1738165539546,20.31459472,227.37,227.3,52.18]
[1738165539739,21.19409472,227.39,227.3,188.58]
[1738165540257,20.31459472,227.36,227.3,136.4]
[1738165540555,20.31459472,227.34,227.28,136.4]
[1738165540733,0.8796,227.36,227.28,136.4]
[1738165541055,21.31968472,227.38,227.28,136.4]
[1738165541356,1.00509,227.38,227.28,136.4]
[1738165541561,20.31459472,227.36,227.28,136.4]
[1738165541862,20.31459472,227.35,227.28,136.4]
[1738165542039,20.31459472,227.34,227.28,136.4]
[1738165542355,20.44166939,227.35,227.27,20.44166939]
[1738165542526,20.44166939,227.35,227.27,156.84166939]
[1738165542722,20.44166939,227.38,227.31,20.44166939]
[1738165542928,20.44166939,227.41,227.34,20.44166939]
[1738165543157,0.12549,227.4,227.34,20.44166939]
[1738165543349,20.44166939,227.38,227.31,156.84166939]
[1738165543741,20.44166939,227.38,227.31,136.4]
[1738165543943,20.44166939,227.38,227.31,156.84166939]
[1738165544441,20.44166939,227.39,227.31,156.84166939]
[1738165545059,0.12549,227.37,227.31,136.4]
[1738165545260,20.44166939,227.34,227.28,136.43]
[1738165545835,20.44166939,227.35,227.28,136.43]
[1738165546159,20.44166939,227.36,227.28,156.87166939]
[1738165547269,21.44675939,227.37,227.3,20.44166939]
[1738165547431,21.32126939,227.37,227.3,20.44166939]
[1738165547636,20.44166939,227.37,227.3,136.4]
[1738165547839,0.25098,227.36,227.29,20.44166939]
[1738165548051,0.25098,227.36,227.28,0.03]
[1738165548052,0.12549,227.34,227.28,0.03]
[1738165548559,20.44166939,227.35,227.28,4.4298]
[1738165548762,20.44166939,227.35,227.28,0.03]
[1738165549134,0.12549,227.34,227.28,0.03]
[1738165549344,20.56715939,227.34,227.28,0.03]
[1738165549539,20.44166939,227.34,227.28,0.03]
[1738165549755,0.12549,227.33,227.28,0.03]
[1738165550060,20.56715939,227.33,227.28,0.03]
[1738165550354,20.44166939,227.33,227.28,0.03]
[1738165551199,20.44166939,227.3,227.28,0.03]
[1738165551542,20.56715939,227.29,227.28,0.03]
[1738165552034,20.81813939,227.29,227.28,0.03]
[1738165553174,21.69803939,227.29,227.28,0.03]
[1738165553763,0.12549,227.29,227.28,0.03]
[1738165554397,20.44166939,227.34,227.28,0.03]
[1738165554559,21.32136939,227.35,227.28,20.47166939]
[1738165555062,0.12549,227.33,227.28,0.03]
[1738165555772,20.56715939,227.33,227.28,0.03]
[1738165555989,21.44685939,227.33,227.28,0.03]
[1738165556169,20.44166939,227.32,227.28,0.03]
[1738165556364,20.44166939,227.31,227.28,0.03]
[1738165556589,20.44166939,227.32,227.28,0.03]
[1738165556975,1.00519,227.33,227.28,0.03]
[1738165556976,21.44685939,227.33,227.28,0.03]
[1738165557791,20.44166939,227.35,227.28,20.47166939]
[1738165557963,20.44166939,227.35,227.28,19.97166939]
[1738165558292,0.12549,227.34,227.28,19.97166939]
[1738165558593,20.56715939,227.34,227.27,20.44166939]
[1738165558805,20.44166939,227.33,227.26,24.84176939]
[1738165559876,0.12549,227.31,227.25,20.44166939]
[1738165560096,0.12549,227.28,227.22,20.47166939]
[1738165560391,20.44166939,227.27,227.22,0.03]
[1738165560597,20.56715939,227.28,227.22,0.03]
[1738165561173,20.44166939,227.31,227.24,20.44166939]
[1738165561372,20.44166939,227.35,227.28,20.44166939]
[1738165561596,21.32136939,227.35,227.28,20.44166939]
[1738165562065,20.44166939,227.33,227.26,20.44166939]
[1738165562495,20.44166939,227.34,227.27,20.44166939]
[1738165562699,0.56496366,227.38,227.3,20.44166939]
[1738165562700,20.44166939,227.38,227.3,20.44166939]
[1738165562891,20.44166939,227.41,227.33,20.44166939]
[1738165563094,20.44166939,227.4,227.33,20.44166939]
[1738165563297,21.32116939,227.4,227.33,20.44166939]
[1738165563483,20.44166939,227.39,227.33,20.44166939]
[1738165563703,20.44166939,227.39,227.32,24.84066939]
[1738165564398,20.44166939,227.38,227.31,24.84086939]
[1738165565183,20.44166939,227.35,227.3,1.6337]
[1738165565500,20.44166939,227.34,227.3,1.6337]
[1738165565801,20.44166939,227.35,227.3,1.6337]
[1738165565996,20.44166939,227.36,227.3,1.6337]
[1738165566170,20.44166939,227.39,227.32,20.44166939]
[1738165566370,21.32116939,227.4,227.32,24.84056939]
[1738165566598,20.44166939,227.36,227.3,1.6337]
[1738165566777,20.44166939,227.35,227.3,1.6337]
[1738165566973,23.64786072,227.35,227.3,1.6337]
[1738165567592,3.20619133,227.35,227.3,1.6337]
[1738165568494,3.20619133,227.34,227.3,1.6337]
[1738165568705,5.77766077,227.34,227.3,1.6337]
[1738165569208,5.77766077,227.34,227.32,20.44166939]
[1738165569598,5.77766077,227.34,227.33,20.44166939]
[1738165569774,2.57146944,227.34,227.33,20.44166939]
[1738165569976,2.57146944,227.34,227.28,23.88]
[1738165570193,1.0,227.37,227.33,20.44166939]
[1738165570393,2.0,227.37,227.34,20.44166939]
[1738165570598,1.0,227.39,227.34,20.44166939]
[1738165570899,1.0,227.39,227.36,20.44166939]
[1738165571302,1.0,227.35,227.3,4.3994]
[1738165571598,1.0,227.31,227.3,4.3994]
[1738165571789,2.0,227.31,227.27,4.4]
[1738165572793,1.0,227.31,227.28,20.44166939]
[1738165572996,2.0,227.34,227.28,20.44166939]
[1738165573171,1.0,227.32,227.28,20.44166939]
[1738165573372,2.0,227.28,227.24,56.6606]
[1738165573605,1.0,227.25,227.24,56.6606]
[1738165575384,1.0,227.25,227.22,4.431]
[1738165575582,1.0,227.23,227.22,0.03]
[1738165576083,2.0,227.23,227.22,0.03]
[1738165580016,2.0,227.23,227.22,20.47166939]
[1738165580312,1.0,227.25,227.22,20.47166939]
[1738165580613,1.0,227.25,227.24,20.44166939]
[1738165581094,1.0,227.27,227.24,20.44166939]
[1738165581294,1.0,227.27,227.25,20.44166939]
[1738165581901,1.0,227.26,227.25,4.4003]
[1738165582116,1.0,227.26,227.24,4.4005]
[1738165582615,1.0,227.23,227.22,0.03]
[1738165583281,1.0,227.29,227.22,24.87266939]
[1738165583503,1.0,227.29,227.26,20.44166939]
[1738165583988,2.0,227.29,227.26,24.84176939]
[1738165584199,1.0,227.29,227.26,24.84176939]
[1738165585115,2.0,227.31,227.26,24.84176939]
[1738165585832,1.0,227.27,227.26,4.4001]
[1738165586000,1.0,227.27,227.24,20.44166939]
[1738165586199,2.0,227.31,227.26,20.44166939]
[1738165586405,1.0,227.29,227.26,20.44166939]
[1738165587618,1.0,227.31,227.28,20.44166939]
[1738165588197,1.0,227.31,227.28,24.84136939]
[1738165588719,1.0,227.36,227.3,20.44166939]
[1738165588936,1.0,227.36,227.33,20.44166939]
[1738165590019,1.0,227.39,227.35,20.44166939]
[1738165590224,1.0,227.39,227.36,20.44166939]
[1738165590225,1.0,227.38,227.36,20.44166939]
[1738165590405,1.0,227.37,227.34,20.44166939]
[1738165590611,1.0,227.35,227.32,20.44166939]
[1738165592225,1.0,227.33,227.32,24.84056939]
[1738165593129,1.0,227.35,227.32,24.84056939]
[1738165594701,1.0,227.35,227.34,20.44166939]
[1738165595025,2.0,227.38,227.34,20.44166939]
[1738165595525,0.063,227.39,227.36,20.44166939]
[1738165596113,0.063,227.39,227.38,20.44166939]
[1738165596425,0.063,227.39,227.38,24.83956939]
[1738165597330,0.063,227.39,227.38,20.44166939]
[1738165597629,0.063,227.39,227.38,24.83956939]
[1738165598904,0.063,227.39,227.29,7.8545]
[1738165598905,1.0,227.34,227.3,24.84106939]
[1738165599104,1.0,227.32,227.3,4.3994]
[1738165599520,1.0,227.34,227.3,24.84106939]
[1738165599723,2.0,227.38,227.32,20.44166939]
[1738165600823,1.0,227.36,227.33,4.3988]
[1738165601225,1.0,227.38,227.33,4.3988]
[1738165602329,1.0,227.36,227.3,24.84106939]
[1738165602538,1.0,227.34,227.3,24.84106939]
[1738165603445,1.0,227.34,227.3,4.3994]
[1738165603624,1.0,227.32,227.29,6.0634]
[1738165604943,1.0,227.3,227.29,4.3996]
[1738165605538,1.0,227.32,227.29,4.3996]
[1738165605846,1.0,227.33,227.29,4.3996]
[1738165606037,1.0,227.34,227.3,20.44166939]
[1738165607024,1.0,227.34,227.31,4.3992]
[1738165608548,0.063,227.39,227.32,22.08716939]
[1738165608724,0.063,227.39,227.36,20.44166939]
[1738165608926,0.063,227.39,227.38,20.44166939]
[1738165609121,0.063,227.39,227.38,24.83956939]
[1738165610642,0.063,227.39,227.38,17.1620683]
[1738165610845,0.063,227.39,227.38,138.7620683]
[1738165611148,0.0001,227.39,227.38,162.5389523]
[1738165611449,0.0001,227.39,227.38,138.7620683]
[1738165612460,0.0001,227.39,227.38,162.5389523]
[1738165612765,0.063,227.45,227.41,50.0]
[1738165612929,0.063,227.45,227.44,20.41262788]
[1738165613131,0.063,227.45,227.44,142.01262788]
[1738165613330,0.063,227.45,227.44,146.40932788]
[1738165616348,1.063,227.45,227.44,121.6]
[1738165618051,1.063,227.45,227.41,121.6]
[1738165618256,1.0,227.41,227.4,121.6]
[1738165618756,1.0,227.42,227.4,125.9975]
[1738165619133,1.0,227.41,227.4,125.9975]
[1738165619448,1.0,227.41,227.4,121.6]
[1738165619764,1.0,227.42,227.4,121.6]
[1738165620458,1.0,227.41,227.4,121.6]
[1738165620952,21.41262788,227.41,227.36,121.6]
[1738165621257,1.0,227.36,227.34,121.6]
[1738165621438,2.0,227.34,227.32,121.6]
[1738165621841,1.0,227.4,227.32,24.81162788]
[1738165622051,2.0,227.4,227.38,20.41262788]
[1738165622235,2.0,227.4,227.38,142.01262788]
[1738165622566,2.0,227.4,227.38,121.6]
[1738165623547,20.41262788,227.39,227.38,121.6]
[1738165624056,2.0,227.4,227.38,121.6]
[1738165624834,1.0,227.4,227.38,146.41042788]
[1738165625228,1.0,227.43,227.38,24.81042788]
[1738165625429,1.063,227.45,227.42,20.41262788]
[1738165625655,0.063,227.45,227.44,20.41262788]
[1738165626461,0.063,227.45,227.44,24.80932788]
[1738165626755,1.0,227.43,227.42,121.6]
[1738165628662,1.063,227.45,227.42,142.01262788]
[1738165628832,1.063,227.45,227.44,20.41262788]
[1738165629458,1.0,227.44,227.42,142.01262788]
[1738165629967,1.0,227.43,227.4,20.41262788]
[1738165630128,1.0,227.44,227.4,20.41262788]
[1738165630560,1.0,227.44,227.42,20.41262788]
[1738165632341,1.0,227.43,227.42,20.41262788]
[1738165632539,1.0,227.43,227.4,20.41262788]
[1738165632848,2.0,227.43,227.41,12.76112006]
[1738165633053,1.0,227.43,227.41,12.76112006]
[1738165633258,1.063,227.45,227.41,12.76112006]
[1738165633559,2.063,227.45,227.41,17.15832006]
[1738165633772,1.0,227.42,227.41,12.76112006]
[1738165633931,1.0,227.43,227.4,121.6]
[1738165634136,1.0,227.43,227.4,125.9974]
[1738165634558,1.0,227.42,227.4,121.6]
[1738165634766,1.0,227.41,227.4,121.6]
[1738165635864,1.0,227.41,227.39,17.15872006]
[1738165636374,1.063,227.45,227.39,17.15872006]
[1738165636675,0.063,227.45,227.44,12.76112006]
[1738165636860,1.063,227.45,227.44,12.76112006]
[1738165637062,2.0,227.43,227.39,17.15872006]
[1738165637459,2.0,227.4,227.38,0.03]
[1738165637660,14.76112006,227.4,227.38,0.03]
[1738165637859,0.8795,227.39,227.38,0.03]
[1738165638970,1.00499,227.39,227.38,0.03]
[1738165639177,1.69544366,227.39,227.38,0.03]
[1738165639379,14.76112006,227.4,227.38,0.03]
[1738165639672,15.64062006,227.4,227.38,0.03]
[1738165640958,1.0,227.26,227.23,12.79112006]
[1738165641267,2.0,227.24,227.23,0.03]
[1738165644984,1.0,227.24,227.23,0.03]
[1738165645173,1.0,227.26,227.23,12.79112006]
[1738165645371,1.0,227.26,227.25,12.76112006]
[1738165645672,1.0,227.26,227.25,134.36112006]
[1738165645869,1.0,227.29,227.25,134.36112006]
[1738165646085,1.0,227.29,227.27,12.76112006]
[1738165646388,2.0,227.31,227.27,134.36112006]
[1738165646565,2.0,227.31,227.29,12.76112006]
[1738165647483,2.0,227.31,227.29,17.16062006]
[1738165647688,2.0,227.34,227.29,138.76062006]
[1738165647870,1.0,227.34,227.33,12.76112006]
[1738165648075,2.0,227.4,227.33,134.36112006]
[1738165648285,17.599756,227.41,227.39,12.76112006]
[1738165648592,18.599756,227.41,227.39,134.36112006]
[1738165648890,1.0,227.4,227.39,134.36112006]
[1738165649773,1.063,227.41,227.39,138.75872006]
[1738165649972,0.063,227.41,227.39,138.75872006]
[1738165651189,0.063,227.45,227.39,138.75872006]
[1738165651389,0.063,227.45,227.44,12.76112006]
[1738165651585,1.063,227.45,227.44,12.76112006]
[1738165652267,0.063,227.45,227.44,12.76112006]
[1738165652883,1.0,227.44,227.43,121.6]
[1738165653193,2.0,227.44,227.43,121.6]
[1738165654079,0.063,227.45,227.43,125.9969]
[1738165654391,0.063,227.45,227.44,17.15782006]
[1738165656695,1.063,227.45,227.43,121.6]
[1738165656865,1.0,227.44,227.43,121.6]
[1738165659196,1.0,227.41,227.4,134.36112006]
[1738165659692,1.063,227.45,227.4,138.75862006]
[1738165659874,1.0,227.44,227.43,12.76112006]